bitfinex/quotes_BTCUSD_20250508
["timestamp","ask_amount","ask_price","bid_price","bid_amount"]
[1746700898576,0.0162,99841.0,99840.0,0.00844643]
[1746700898816,0.2321185,99841.0,99840.0,0.34]
[1746700899126,0.2321185,99841.0,99840.0,0.34844452]
[1746700900305,0.2321185,99841.0,99840.0,0.00844452]
[1746700900482,0.2341185,99841.0,99840.0,0.00844452]
[1746700900688,0.23283054,99835.0,99834.0,0.34]
[1746700900892,0.23283054,99835.0,99834.0,0.941433]
[1746700901278,0.23283054,99835.0,99834.0,0.980526]
[1746700901487,0.0325,99835.0,99834.0,0.980526]
[1746700901675,0.0325,99835.0,99834.0,1.18085855]
[1746700901676,0.0166,99835.0,99834.0,1.18085855]
[1746700904263,0.002,99835.0,99834.0,1.18935158]
[1746700905320,0.002,99835.0,99834.0,0.97004895]
[1746700906066,0.003,99835.0,99834.0,0.84935158]
[1746700907234,0.003,99835.0,99834.0,1.18935158]
[1746700907444,0.003,99835.0,99834.0,0.98901903]
[1746700907603,0.003,99835.0,99834.0,1.18935158]
[1746700908011,0.0188,99835.0,99834.0,1.18935158]
[1746700908217,0.003,99835.0,99834.0,1.18935158]
[1746700912270,0.2385439,99837.0,99836.0,0.00843941]
[1746700912873,0.20634285,99837.0,99836.0,0.00843941]
[1746700913550,0.23834285,99837.0,99836.0,0.00843941]
[1746700913985,0.22264285,99837.0,99836.0,0.00843941]
[1746700914625,0.22364285,99837.0,99836.0,0.00843941]
[1746700914818,0.23914285,99837.0,99836.0,0.00843941]
[1746700917172,0.22364285,99837.0,99836.0,0.00843941]
[1746700918382,0.20232653,99837.0,99836.0,0.00843941]
[1746700923543,0.20032853,99836.0,99835.0,0.34]
[1746700924790,0.20132853,99836.0,99835.0,0.34]
[1746700925308,0.19432853,99836.0,99835.0,0.34]
[1746700925831,0.19532853,99836.0,99835.0,0.34]
[1746700926972,0.19532853,99836.0,99833.0,0.21035008]
[1746700927163,0.19532853,99836.0,99835.0,0.00846542]
[1746700927459,0.19532853,99836.0,99834.0,0.00846262]
[1746700928071,0.20033067,99835.0,99833.0,0.21035008]
[1746700928280,0.20033067,99835.0,99834.0,2.933985]
[1746700928520,0.21234509,99836.0,99834.0,2.933985]
[1746700928955,0.20033054,99835.0,99834.0,2.933985]
[1746700930258,0.20233054,99835.0,99834.0,2.982291]
[1746700930460,0.20233054,99835.0,99834.0,2.518186]
[1746700931038,0.21234706,99835.0,99831.0,0.01001692]
[1746700931239,0.20033354,99834.0,99831.0,0.21035396]
[1746700931455,0.20033354,99834.0,99832.0,2.66178502]
[1746700931632,0.20033354,99834.0,99833.0,2.133079]
[1746700931835,0.20033354,99834.0,99833.0,2.14153882]
[1746700932037,0.20033354,99834.0,99833.0,2.14554782]
[1746700932472,0.19333354,99834.0,99833.0,2.14554782]
[1746700933256,0.21134837,99835.0,99833.0,2.14554782]
[1746700933462,0.21134837,99835.0,99834.0,2.12105]
[1746700933649,0.01001652,99835.0,99834.0,2.12105]
[1746700934713,0.01101652,99835.0,99834.0,2.12105]
[1746700934912,0.01001652,99835.0,99834.0,2.12105]
[1746700935150,0.01001652,99835.0,99834.0,2.12950543]
[1746700935326,0.01001652,99835.0,99834.0,2.19466043]
[1746700936308,0.01101652,99835.0,99834.0,2.19466043]
[1746700936707,0.01201652,99835.0,99834.0,2.19466043]
[1746700937120,0.002,99835.0,99834.0,2.19466043]
[1746700938862,0.20233054,99835.0,99834.0,2.19466043]
[1746700939629,0.19533054,99835.0,99834.0,2.19466043]
[1746700946715,0.18833054,99835.0,99834.0,2.19466043]
[1746700947093,0.18833054,99835.0,99834.0,2.14754843]
[1746700950442,0.2003292,99836.0,99834.0,2.34787972]
[1746700950666,0.21034455,99837.0,99834.0,0.20878672]
[1746700950848,0.20033054,99835.0,99834.0,0.00845543]
[1746700951192,0.20033054,99835.0,99834.0,2.137088]
[1746700951384,0.20032937,99836.0,99834.0,0.20878287]
[1746700951590,0.20032937,99836.0,99834.0,2.39398587]
[1746700951793,0.20032937,99836.0,99834.0,0.20878287]
[1746700951964,0.20033054,99835.0,99834.0,0.00845032]
[1746700952145,0.20033054,99835.0,99834.0,2.137088]
[1746700952485,0.2003326,99834.0,99832.0,2.37351056]
[1746700952687,0.01001652,99835.0,99833.0,2.137088]
[1746700953093,0.21034732,99835.0,99833.0,2.137088]
[1746700953298,0.20033255,99834.0,99833.0,2.137088]
[1746700953532,0.21234732,99835.0,99832.0,2.175179]
[1746700953671,0.2013308,99835.0,99832.0,2.37551534]
[1746700953861,0.2003308,99835.0,99832.0,2.37551534]
[1746700954077,0.20033255,99834.0,99833.0,2.139093]
[1746700954248,0.20033255,99834.0,99832.0,2.175179]
[1746700954619,0.20033255,99834.0,99833.0,0.00844472]
[1746700954828,0.20033454,99835.0,99833.0,2.14553272]
[1746700954829,0.21035106,99835.0,99833.0,2.14553272]
[1746700954958,0.23213255,99834.0,99833.0,0.00844472]
[1746700955610,0.20034659,99827.0,99826.0,4.563e-05]
[1746700955784,0.23154659,99827.0,99826.0,4.563e-05]
[1746700956193,0.2503334,99827.0,99826.0,4.563e-05]
[1746700956929,0.23154659,99827.0,99826.0,4.563e-05]
[1746700957101,0.23554659,99827.0,99826.0,4.563e-05]
[1746700963551,0.33621351,99827.0,99826.0,4.563e-05]
[1746700963974,0.35496642,99827.0,99826.0,4.563e-05]
[1746700965361,0.20037114,99815.0,99812.0,0.2003767]
[1746700965558,0.20037114,99815.0,99813.0,2.55359]
[1746700965779,0.20037114,99815.0,99813.0,2.505466]
[1746700965914,0.20037114,99815.0,99814.0,2.521508]
[1746700966113,0.20037114,99815.0,99813.0,2.31297]
[1746700966803,0.20037114,99815.0,99813.0,2.31397]
[1746700966951,0.20037114,99815.0,99814.0,2.362096]
[1746700967157,0.20036219,99820.0,99814.0,2.362096]
[1746700967158,0.21037824,99821.0,99817.0,0.01001833]
[1746700967358,0.20036195,99820.0,99817.0,0.02591833]
[1746700967697,0.21037646,99822.0,99819.0,0.02591813]
[1746700967897,0.20035987,99821.0,99819.0,0.0159]
[1746700968111,0.21037028,99824.0,99819.0,0.0159]
[1746700968259,0.21037028,99824.0,99821.0,0.22627511]
[1746700968260,0.01001763,99824.0,99821.0,0.22627511]
[1746700968448,0.01001753,99825.0,99821.0,0.01001793]
[1746700968661,0.01001773,99823.0,99820.0,0.20035904]
[1746700968865,0.01001773,99823.0,99820.0,4.42528704]
[1746700969063,0.21037426,99823.0,99820.0,0.20035904]
[1746700969267,0.20035668,99822.0,99820.0,0.20035904]
[1746700969466,0.20035668,99822.0,99819.0,0.01001813]
[1746700969662,0.21037241,99823.0,99821.0,0.34]
[1746700969941,0.21137241,99823.0,99821.0,0.34]
[1746700970487,0.20035663,99822.0,99821.0,0.34]
[1746700970852,0.21137241,99823.0,99820.0,0.34]
[1746700971047,0.20035769,99822.0,99820.0,4.549622]
[1746700971256,0.20035864,99821.0,99820.0,0.34]
[1746700971456,0.20035864,99821.0,99820.0,1.03676]
[1746700973963,0.20135864,99821.0,99820.0,1.03676]
[1746700979093,0.20135864,99821.0,99820.0,0.69676]
[1746700979294,0.20036432,99819.0,99817.0,2.136392]
[1746700979494,0.20036667,99817.0,99814.0,0.20037238]
[1746700979656,0.20036881,99816.0,99815.0,2.595573]
[1746700980060,0.20037068,99815.0,99814.0,2.647707]
[1746700980256,0.20036881,99816.0,99814.0,2.647707]
[1746700980871,0.20036881,99816.0,99814.0,2.8480787]
[1746700981099,0.20036881,99816.0,99815.0,2.595573]
[1746700981564,0.21038151,99819.0,99815.0,2.60559153]
[1746700981762,0.20036541,99818.0,99816.0,3.094838]
[1746700982083,0.20036667,99817.0,99816.0,2.873279]
[1746700982334,0.20036667,99817.0,99815.0,0.01001853]
[1746700982537,0.20036667,99817.0,99816.0,2.841198]
[1746700982728,0.01001823,99818.0,99816.0,3.04156667]
[1746700982936,0.20036664,99818.0,99817.0,2.208574]
[1746700983139,0.20036664,99818.0,99816.0,3.991146]
[1746700983670,0.20036664,99818.0,99816.0,3.980118]
[1746700984085,0.20036664,99818.0,99817.0,2.128372]
[1746700984306,0.20036664,99818.0,99816.0,3.952042]
[1746700984507,0.20036664,99818.0,99817.0,2.176493]
[1746700984661,0.20036664,99818.0,99816.0,3.952042]
[1746700985054,0.20036664,99818.0,99816.0,3.872836]
[1746700985256,0.01001813,99819.0,99817.0,0.20036667]
[1746700985456,0.21038078,99819.0,99818.0,2.48026]
[1746700985640,0.20036466,99818.0,99816.0,0.21038542]
[1746700985841,0.20036498,99818.0,99817.0,2.32988]
[1746700986898,0.21038078,99819.0,99817.0,2.32988]
[1746700987448,0.20035445,99824.0,99820.0,0.01001803]
[1746700987656,0.01001712,99829.0,99823.0,0.21037233]
[1746700987860,0.21036745,99826.0,99823.0,0.21037233]
[1746700988056,0.01001743,99826.0,99823.0,0.21037233]
[1746700988391,0.2103663,99826.0,99823.0,0.21037233]
[1746700988758,0.2003509,99825.0,99823.0,0.01001773]
[1746700989914,0.001,99825.0,99822.0,0.20035626]
[1746700990525,0.2113663,99826.0,99822.0,0.20035626]
[1746700990840,0.20035462,99823.0,99820.0,0.21037751]
[1746700991050,0.01001763,99824.0,99821.0,0.54467617]
[1746700991250,0.01001763,99824.0,99822.0,0.2454]
[1746700991448,0.21037045,99824.0,99822.0,0.2454]
[1746700993078,0.21037045,99824.0,99821.0,0.21037617]
[1746700993579,0.2003548,99823.0,99821.0,0.01001793]
[1746700994292,0.20035663,99822.0,99820.0,0.01001803]
[1746700994491,0.21037253,99823.0,99820.0,0.01001803]
[1746700995265,0.21037253,99823.0,99820.0,0.21037743]
[1746700995803,0.2003569,99822.0,99820.0,0.01001803]
[1746700996005,0.2003569,99822.0,99820.0,0.21037865]
[1746700997906,0.2013569,99822.0,99819.0,0.20036234]
[1746700998134,0.20035864,99821.0,99820.0,4.224928]
[1746700998307,0.20035864,99821.0,99819.0,6.007428]
[1746700998744,0.21137473,99822.0,99819.0,6.11958992]
[1746700998896,0.20036036,99821.0,99820.0,2.663723]
[1746700999105,0.01001783,99822.0,99819.0,4.325704]
[1746700999305,0.04408151,99821.0,99819.0,3.295876]
[1746700999523,0.01001813,99819.0,99814.0,2.72075333]
[1746700999721,0.21038289,99818.0,99815.0,2.347938]
[1746701000292,0.01001783,99822.0,99819.0,0.20036229]
[1746701000456,0.21037521,99822.0,99820.0,3.025636]
[1746701000664,0.20035864,99821.0,99819.0,3.058719]
[1746701000873,0.20036064,99820.0,99819.0,3.058719]
[1746701001041,0.20036073,99820.0,99818.0,3.18001823]
[1746701001241,0.20036073,99820.0,99819.0,3.058719]
[1746701001906,0.20036073,99820.0,99819.0,2.51635]
[1746701002111,0.20036073,99820.0,99819.0,2.484269]
[1746701002551,0.20036073,99820.0,99819.0,1.988018]
[1746701002750,0.20036073,99820.0,99818.0,2.284767]
[1746701002870,0.20036073,99820.0,99819.0,2.237648]
[1746701003071,0.20036073,99820.0,99819.0,2.205567]
[1746701003292,0.20036073,99820.0,99818.0,2.252686]
[1746701003558,0.20036265,99819.0,99818.0,2.053182]
[1746701003782,0.20036265,99819.0,99817.0,0.01001833]
[1746701003911,0.20036265,99819.0,99818.0,2.037142]
[1746701004138,0.21037876,99820.0,99818.0,2.037142]
[1746701004928,0.01001803,99820.0,99818.0,2.037142]
[1746701005131,0.2103794,99820.0,99818.0,2.037142]
[1746701005319,0.01001803,99820.0,99818.0,2.037142]
[1746701006954,0.21037691,99821.0,99818.0,2.2375063]
[1746701007162,0.21037691,99821.0,99819.0,2.30983]
[1746701007313,0.21037691,99821.0,99820.0,2.110326]
[1746701007511,0.21037691,99821.0,99819.0,2.158448]
[1746701007712,0.21037691,99821.0,99819.0,2.110326]
[1746701008136,0.20036141,99820.0,99818.0,2.189526]
[1746701008338,0.20036141,99820.0,99819.0,2.110326]
[1746701008542,0.20036141,99820.0,99818.0,2.190529]
[1746701008811,0.20036141,99820.0,99818.0,2.158448]
[1746701009809,0.20036141,99820.0,99817.0,0.21038454]
[1746701010297,0.20036141,99820.0,99818.0,2.206569]
[1746701010588,0.20036141,99820.0,99818.0,2.183511]
[1746701010798,0.20036141,99820.0,99818.0,2.167471]
[1746701010989,0.20036141,99820.0,99818.0,2.183511]
[1746701011195,0.01001793,99821.0,99818.0,2.38387474]
[1746701011337,0.001,99820.0,99819.0,2.287774]
[1746701012851,0.001,99820.0,99819.0,2.48813665]
[1746701013664,0.001,99820.0,99819.0,2.287774]
[1746701013843,0.001,99820.0,99818.0,2.205567]
[1746701014344,0.001,99820.0,99818.0,2.37385014]
[1746701014550,0.001,99820.0,99819.0,2.158448]
[1746701014760,0.001,99820.0,99819.0,2.35881065]
[1746701015949,0.001,99820.0,99819.0,2.36600221]
[1746701017738,0.001,99820.0,99819.0,2.39730221]
[1746701018119,0.001,99820.0,99819.0,1.48376321]
[1746701021089,0.001,99820.0,99819.0,1.48376321]
[1746701025382,0.001,99820.0,99819.0,0.20755421]
[1746701025942,0.001,99820.0,99819.0,2.96946821]
[1746701033510,0.001,99820.0,99819.0,2.58551221]
[1746701033712,0.001,99820.0,99819.0,2.52536221]
[1746701034548,0.20136064,99820.0,99819.0,0.00719156]
[1746701034961,0.2103846,99818.0,99816.0,1.123839]
[1746701035168,0.20036667,99817.0,99816.0,1.123839]
[1746701035368,0.2103846,99818.0,99815.0,1.32420844]
[1746701035530,0.2103846,99818.0,99816.0,1.254172]
[1746701036616,0.20036667,99817.0,99816.0,1.254172]
[1746701036820,0.20036667,99817.0,99815.0,1.254172]
[1746701036985,0.21038311,99818.0,99815.0,0.146373]
[1746701037188,0.01001833,99817.0,99814.0,0.225579]
[1746701037395,0.21038634,99817.0,99814.0,0.20037236]
[1746701038138,0.01001823,99818.0,99815.0,0.124316]
[1746701038339,0.001,99820.0,99817.0,0.21038486]
[1746701038636,0.01001813,99819.0,99818.0,0.671683]
[1746701038813,0.01001813,99819.0,99818.0,0.00713442]
[1746701039016,0.01001813,99819.0,99818.0,0.67881742]
[1746701039265,0.01001813,99819.0,99818.0,0.67781542]
[1746701039452,0.21038274,99819.0,99818.0,0.64172542]
[1746701039638,0.21038274,99819.0,99818.0,0.60563442]
[1746701040872,0.21038274,99819.0,99818.0,0.00713442]
[1746701041114,0.21038274,99819.0,99818.0,0.64172542]
[1746701041315,0.21038476,99818.0,99815.0,0.01001853]
[1746701041520,0.21038476,99818.0,99816.0,0.670683]
[1746701041725,0.01001813,99819.0,99816.0,0.670683]
[1746701041958,0.01001813,99819.0,99816.0,0.8710503]
[1746701042322,0.01001813,99819.0,99817.0,0.87104766]
[1746701042508,0.21038181,99819.0,99818.0,0.670681]
[1746701042705,0.21038181,99819.0,99817.0,0.670681]
[1746701043734,0.01001813,99819.0,99817.0,0.871047]
[1746701043943,0.01001813,99819.0,99818.0,0.686721]
[1746701044118,0.20136224,99820.0,99818.0,0.686721]
[1746701045042,0.001,99820.0,99818.0,0.88708493]
[1746701045247,0.2013623,99820.0,99819.0,2.176447]
[1746701045403,0.001,99820.0,99819.0,2.03889968]
[1746701045814,0.001,99820.0,99819.0,2.039104]
[1746701047189,0.001,99820.0,99819.0,2.23946665]
[1746701047770,0.001,99820.0,99819.0,2.02442525]
[1746701048116,0.001,99820.0,99819.0,2.04297465]
[1746701048367,0.001,99820.0,99819.0,1.826572]
[1746701048947,0.001,99820.0,99818.0,0.20036395]
[1746701049184,0.001,99820.0,99819.0,1.826572]
[1746701049857,0.001,99820.0,99818.0,1.878703]
[1746701050324,0.001,99820.0,99819.0,1.826572]
[1746701050529,0.20036265,99819.0,99818.0,1.862663]
[1746701050729,0.20036265,99819.0,99817.0,1.862663]
[1746701051631,0.001,99820.0,99817.0,1.87268133]
[1746701051952,0.21137907,99820.0,99818.0,1.959906]
[1746701052817,0.21137907,99820.0,99818.0,1.911786]
[1746701054634,0.21137907,99820.0,99818.0,2.11215045]
[1746701054840,0.21137907,99820.0,99819.0,2.332845]
[1746701055068,0.21137907,99820.0,99819.0,2.300764]
[1746701055879,0.21137907,99820.0,99818.0,2.336855]
[1746701057182,0.01101803,99820.0,99818.0,2.336855]
[1746701057721,0.01101803,99820.0,99819.0,2.248634]
[1746701060362,0.001,99820.0,99819.0,1.834592]
[1746701063127,0.001,99820.0,99819.0,1.818552]
[1746701063647,0.001,99820.0,99819.0,2.01891465]
[1746701064310,0.001,99820.0,99819.0,1.818552]
[1746701066101,0.20136064,99820.0,99819.0,1.818552]
[1746701066307,0.20136064,99820.0,99818.0,2.066035]
[1746701066515,0.20136064,99820.0,99819.0,1.818552]
[1746701066879,0.001,99820.0,99818.0,0.20036392]
[1746701067261,0.001,99820.0,99819.0,1.818552]
[1746701068311,0.001,99820.0,99818.0,0.20036411]
[1746701069058,0.001,99820.0,99819.0,1.867675]
[1746701069532,0.19339444,99821.0,99819.0,2.0680372]
[1746701069712,0.19339444,99821.0,99820.0,1.975946]
[1746701069910,0.19339444,99821.0,99819.0,2.17630863]
[1746701070225,0.19339444,99821.0,99820.0,1.975946]
[1746701070405,0.19339444,99821.0,99820.0,1.943866]
[1746701070550,0.19339444,99821.0,99819.0,1.975946]
[1746701070765,0.19339444,99821.0,99819.0,1.943866]
[1746701071591,0.20036064,99820.0,99819.0,1.943866]
[1746701072844,0.19339444,99821.0,99819.0,2.14422865]
[1746701073155,0.19339444,99821.0,99820.0,1.975946]
[1746701073519,0.01001783,99822.0,99820.0,2.17630664]
[1746701073753,0.21037464,99822.0,99821.0,2.096247]
[1746701073959,0.21037464,99822.0,99820.0,2.498253]
[1746701074155,0.21037464,99822.0,99820.0,2.236598]
[1746701075467,0.21037464,99822.0,99820.0,1.975946]
[1746701075913,0.21137464,99822.0,99820.0,1.975946]
[1746701076274,0.21137464,99822.0,99820.0,2.17630645]
[1746701076457,0.21137464,99822.0,99821.0,1.867675]
[1746701076767,0.21037464,99822.0,99821.0,1.867675]
[1746701076973,0.21137464,99822.0,99821.0,1.867675]
[1746701077396,0.21037464,99822.0,99821.0,1.835595]
[1746701077798,0.21137464,99822.0,99821.0,1.835595]
[1746701078747,0.21137464,99822.0,99821.0,1.743364]
[1746701078903,0.21137464,99822.0,99820.0,1.851635]
[1746701079078,0.001,99822.0,99820.0,1.818552]
[1746701079294,0.2013573,99822.0,99819.0,2.07805543]
[1746701079539,0.2023573,99822.0,99819.0,2.07805543]
[1746701079742,0.2003573,99822.0,99820.0,1.67992141]
[1746701080132,0.2013573,99822.0,99820.0,0.20036021]
[1746701080401,0.2013573,99822.0,99821.0,1.571935]
[1746701080555,0.20035864,99821.0,99820.0,1.680206]
[1746701080754,0.2013573,99822.0,99820.0,1.664166]
[1746701081162,0.2013573,99822.0,99820.0,1.86452655]
[1746701081391,0.2013573,99822.0,99821.0,1.555895]
[1746701081944,0.2013573,99822.0,99820.0,1.664166]
[1746701082144,0.2013573,99822.0,99820.0,1.647123]
[1746701082448,0.2003573,99822.0,99820.0,1.680206]
[1746701082694,0.001,99821.0,99820.0,1.680206]
[1746701083098,0.2013573,99822.0,99820.0,1.680206]
[1746701083296,0.2003573,99822.0,99820.0,1.680206]
[1746701083495,0.2013573,99822.0,99820.0,1.680206]
[1746701084456,0.001,99822.0,99820.0,1.680206]
[1746701085101,0.001,99822.0,99820.0,1.88056555]
[1746701085308,0.001,99822.0,99821.0,1.726321]
[1746701086137,0.001,99822.0,99821.0,1.694241]
[1746701086282,0.21037239,99823.0,99821.0,1.694241]
[1746701086483,0.001,99822.0,99821.0,1.694241]
[1746701086673,0.002,99822.0,99821.0,1.694241]
[1746701087909,0.001,99822.0,99821.0,1.694241]
[1746701088128,0.001,99822.0,99821.0,1.89459964]
[1746701088846,0.001,99822.0,99821.0,6.80659964]
[1746701090052,0.002,99822.0,99821.0,6.80659964]
[1746701090250,0.002,99822.0,99821.0,6.77469964]
[1746701090451,4.561e-05,99827.0,99824.0,0.21036842]
[1746701090652,4.561e-05,99827.0,99825.0,0.20034978]
[1746701094392,0.20035065,99825.0,99823.0,0.21037214]
[1746701094538,0.21036847,99825.0,99822.0,0.01001783]
[1746701094738,0.21036847,99825.0,99822.0,0.21037443]
[1746701095139,0.20035396,99824.0,99822.0,0.01001783]
[1746701096475,0.20035462,99823.0,99821.0,0.20035488]
[1746701096674,0.21137159,99824.0,99822.0,2.014041]
[1746701097095,0.21137159,99824.0,99822.0,2.21439692]
[1746701097292,0.21137159,99824.0,99822.0,0.20035592]
[1746701097505,0.19086007,99824.0,99821.0,0.21037281]
[1746701097729,0.01001763,99824.0,99822.0,2.23043717]
[1746701097931,0.01001763,99824.0,99822.0,0.20035617]
[1746701098318,0.21037199,99825.0,99822.0,0.210374]
[1746701099338,0.21036977,99826.0,99823.0,0.21037182]
[1746701099776,0.20035074,99825.0,99823.0,0.01001773]
[1746701099929,0.21036977,99826.0,99823.0,0.01001773]
[1746701100116,0.21036977,99826.0,99823.0,0.21037213]
[1746701101004,0.20035067,99825.0,99823.0,0.21037213]
[1746701101207,0.21036818,99825.0,99822.0,0.21037068]
[1746701101806,0.21036818,99825.0,99823.0,0.00713938]
[1746701102711,0.21136818,99825.0,99823.0,0.00713938]
[1746701102917,0.21236818,99825.0,99823.0,0.00713938]
[1746701103278,0.20035262,99824.0,99823.0,0.00713938]
[1746701103998,0.21236818,99825.0,99823.0,0.00713938]
[1746701104200,0.01201753,99825.0,99823.0,0.20749305]
[1746701104373,0.01101753,99825.0,99823.0,0.20749305]
[1746701104736,0.001,99824.0,99823.0,0.00713938]
[1746701104875,0.002,99824.0,99823.0,0.00713938]
[1746701105082,0.20135262,99824.0,99823.0,0.00713938]
[1746701105278,4.561e-05,99827.0,99826.0,0.2003486]
[1746701105470,4.561e-05,99827.0,99825.0,0.20035061]
[1746701105669,4.561e-05,99827.0,99826.0,0.00713377]
[1746701106073,0.01006293,99827.0,99824.0,0.21036999]
[1746701106288,0.001,99824.0,99823.0,0.01001773]
[1746701106484,0.001,99824.0,99823.0,4.04399387]
[1746701106688,0.21036691,99826.0,99823.0,4.04399387]
[1746701107022,0.21036691,99826.0,99823.0,0.35940687]
[1746701107422,0.21036691,99826.0,99823.0,0.55037144]
[1746701107624,0.001,99824.0,99823.0,0.55037144]
[1746701108015,0.001,99824.0,99823.0,0.35001773]
[1746701108201,0.21036691,99826.0,99823.0,4.03460473]
[1746701108407,0.01001743,99826.0,99823.0,0.5503717]
[1746701108608,0.01201743,99826.0,99824.0,0.01877743]
[1746701108808,0.01101743,99826.0,99825.0,0.00938876]
[1746701109241,0.01101743,99826.0,99825.0,0.03529962]
[1746701109441,0.01001743,99826.0,99825.0,0.03529962]
[1746701109853,0.01101743,99826.0,99825.0,0.03529962]
[1746701111047,0.01201743,99826.0,99825.0,0.03529962]
[1746701111450,0.01001743,99826.0,99825.0,0.03529962]
[1746701111696,0.01001743,99826.0,99825.0,0.01652219]
[1746701111856,0.01201743,99826.0,99825.0,0.01652219]
[1746701112720,0.01201743,99826.0,99825.0,0.00713343]
[1746701113078,0.21236711,99826.0,99823.0,0.35001773]
[1746701113280,0.01201743,99826.0,99825.0,0.00713343]
[1746701113445,0.20035061,99825.0,99824.0,0.00713063]
[1746701113648,0.20035061,99825.0,99824.0,0.34]
[1746701114674,0.2003532,99824.0,99822.0,0.01001783]
[1746701114874,0.2003532,99824.0,99823.0,4.024587]
[1746701115084,0.01101743,99826.0,99824.0,0.34]
[1746701115286,0.20135061,99825.0,99822.0,0.35001783]
[1746701115606,0.20135061,99825.0,99824.0,0.34]
[1746701116017,0.20035061,99825.0,99824.0,0.34]
[1746701116205,0.01001743,99826.0,99824.0,0.34]
[1746701116406,0.21136689,99826.0,99824.0,0.34]
[1746701116581,0.21036689,99826.0,99825.0,0.00713623]
[1746701117407,0.21136689,99826.0,99825.0,0.00713623]
[1746701117614,0.21136689,99826.0,99823.0,0.01001773]
[1746701117774,0.21136689,99826.0,99825.0,0.00714627]
[1746701117989,0.21136689,99826.0,99823.0,0.01001773]
[1746701118186,0.27084044,99826.0,99825.0,0.00714627]
[1746701118392,0.06047355,99826.0,99825.0,0.00714627]
[1746701118596,0.001,99826.0,99825.0,0.00714627]
[1746701119022,0.003,99826.0,99825.0,0.00714627]
[1746701120822,0.003,99826.0,99825.0,0.20749688]
[1746701121400,0.003,99826.0,99825.0,0.00714627]
[1746701121594,0.003,99826.0,99825.0,0.20749688]
[1746701124105,0.2033486,99826.0,99825.0,0.00714627]
[1746701124792,0.003,99826.0,99825.0,0.00714627]
[1746701125481,0.2033486,99826.0,99825.0,0.00714627]
[1746701126025,0.003,99826.0,99825.0,0.00709327]
[1746701126355,0.003,99826.0,99825.0,0.02587864]
[1746701126758,0.2033486,99826.0,99825.0,0.02587864]
[1746701126960,0.003,99826.0,99825.0,0.02587864]
[1746701127350,0.003,99826.0,99825.0,0.22622925]
[1746701127550,0.003,99826.0,99825.0,0.02587864]
[1746701128365,0.003,99826.0,99825.0,0.0352716]
[1746701128777,0.003,99826.0,99825.0,0.23562221]
[1746701135165,0.003,99826.0,99825.0,0.06629157]
[1746701135349,0.003,99826.0,99825.0,0.07218293]
[1746701135753,0.003,99826.0,99825.0,0.47218293]
[1746701136585,0.003,99826.0,99825.0,0.07218293]
[1746701138369,0.04537594,99826.0,99825.0,0.07218293]
[1746701138993,0.003,99826.0,99825.0,0.07218293]
[1746701140489,0.003,99826.0,99825.0,0.00589136]
[1746701140620,0.003,99826.0,99825.0,0.20624197]
[1746701143902,0.003,99826.0,99825.0,0.60624197]
[1746701147327,0.003,99826.0,99825.0,0.40589136]
[1746701147952,0.003,99826.0,99825.0,0.60624197]
[1746701149368,0.003,99826.0,99825.0,0.40589136]
[1746701149735,0.003,99826.0,99825.0,0.60624197]
[1746701149935,0.003,99826.0,99825.0,0.61562017]
[1746701151763,0.003,99826.0,99825.0,0.61562062]
[1746701151967,0.003,99826.0,99825.0,0.21562062]
[1746701152375,0.003,99826.0,99825.0,3.90020762]
[1746701153161,0.003,99826.0,99825.0,4.30020762]
[1746701158378,0.003,99826.0,99825.0,4.64020762]
[1746701158606,0.003,99826.0,99825.0,4.67160762]
[1746701159225,0.003,99826.0,99825.0,9.55170762]
[1746701159463,0.003,99826.0,99825.0,9.65237454]
[1746701159933,0.002,99826.0,99825.0,9.65237454]
[1746701160416,0.001,99826.0,99825.0,1.08868754]
[1746701160632,0.001,99826.0,99825.0,9.65337454]
[1746701160868,4.561e-05,99841.0,99840.0,0.54032051]
[1746701161083,9.126e-05,99841.0,99840.0,9.11076848]
[1746701161529,9.126e-05,99841.0,99840.0,9.12951061]
[1746701161733,9.126e-05,99841.0,99840.0,9.52951061]
[1746701162146,9.126e-05,99841.0,99840.0,9.53888926]
[1746701162467,9.126e-05,99841.0,99840.0,9.53988926]
[1746701163233,9.126e-05,99841.0,99840.0,9.54088926]
[1746701163634,9.126e-05,99841.0,99840.0,9.24988926]
[1746701165032,9.126e-05,99841.0,99840.0,9.24988926]
[1746701166550,9.126e-05,99841.0,99840.0,8.68698926]
[1746701166757,9.126e-05,99841.0,99840.0,8.43928926]
[1746701167558,9.126e-05,99841.0,99840.0,6.95721726]
[1746701168563,9.126e-05,99841.0,99840.0,5.57601726]
[1746701168765,9.126e-05,99841.0,99840.0,4.78091726]
[1746701173407,9.126e-05,99841.0,99840.0,4.76801726]
[1746701173760,9.126e-05,99841.0,99840.0,4.75531726]
[1746701173966,9.126e-05,99841.0,99840.0,4.74221726]
[1746701184868,9.126e-05,99841.0,99840.0,3.04081726]
[1746701185001,9.126e-05,99841.0,99840.0,9.14088926]
[1746701185410,9.126e-05,99841.0,99840.0,8.42238926]
[1746701185620,9.126e-05,99841.0,99840.0,8.18868926]
[1746701186258,9.126e-05,99841.0,99840.0,7.54288926]
[1746701186466,9.126e-05,99841.0,99840.0,7.37298926]
[1746701187647,9.126e-05,99841.0,99840.0,7.23688606]
[1746701189952,9.126e-05,99841.0,99840.0,7.17648606]
[1746701190360,9.126e-05,99841.0,99840.0,7.10138606]
[1746701190559,9.126e-05,99841.0,99840.0,6.88181706]
[1746701191578,0.00109126,99841.0,99840.0,6.88181706]
[1746701191743,0.00109126,99841.0,99840.0,5.85171506]
[1746701192415,0.00109126,99841.0,99840.0,5.32019906]
[1746701192727,0.00109126,99841.0,99840.0,9.00478606]
[1746701193437,0.00109126,99841.0,99840.0,6.83878606]
[1746701194016,0.00109126,99841.0,99840.0,6.76339606]
[1746701194534,0.00109126,99841.0,99840.0,6.71719606]
[1746701194733,0.00109126,99841.0,99840.0,6.69399606]
[1746701204281,0.00109126,99841.0,99840.0,2.10679875]
[1746701204702,0.00109126,99841.0,99840.0,2.00757475]
[1746701206980,0.01759126,99841.0,99840.0,1.86324775]
[1746701207181,0.23450976,99841.0,99840.0,0.37588175]
[1746701207408,0.23450976,99841.0,99840.0,0.03588175]
[1746701207670,0.33517668,99841.0,99840.0,0.03588175]
[1746701207870,0.33517668,99841.0,99840.0,0.03012078]
[1746701208186,0.33517668,99841.0,99840.0,0.02912078]
[1746701208393,0.40694668,99841.0,99840.0,0.02912078]
[1746701208614,0.40694668,99841.0,99840.0,0.03012078]
[1746701208873,0.40694668,99841.0,99840.0,0.02912078]